Cogmind - Beta 16 @@@ ROGUE MODE // 2025.12.15 @ 15:20:07 Player: Possibly A Hive Mind Result: Destroyed by TN-BDY(R) with Subdweller Machine Gun Performance ------------- Evolutions (0) 0 Regions Visited (2) 400 Robots Destroyed (24) 120 Value Destroyed (590) 590 Prototype IDs (5) 100 Alien Tech Used (0) 0 Bonus (0) 0 TOTAL SCORE: 1210 Bonus ------- None Cogmind --------- Core Integrity 0/250 Matter 300/300 Energy 244/250 System Corruption 1% Temperature Cool (0) Movement Walking (120) Location -10/Subcaves Parts ------- > --- POWER (1) -------- Ion Engine > --- PROPULSION (2) --- Aluminum Leg Aluminum Leg > --- UTILITY (2) ------ Heat Sink Signal Interpreter > --- WEAPON (2) ------- Beam Cannon Beam Cannon > --- INVENTORY (5) ---- Subdweller Monowheel Heat Sink Light Assault Rifle Battle Rifle Makeshift Shrapnel Gun Peak State ------------ > --- POWER ------------ Ion Engine > --- PROPULSION ------- Aluminum Leg Aluminum Leg > --- UTILITY ---------- Heat Sink Signal Interpreter > --- WEAPON ----------- Beam Cannon Beam Cannon > --- INVENTORY -------- Subdweller Monowheel Heat Sink Light Assault Rifle Battle Rifle Makeshift Shrapnel Gun [Rating: 8] Favorites ----------- Power Ion Engine Engine Ion Engine Propulsion Aluminum Leg Leg Aluminum Leg Utility Signal Interpreter Device Heat Sink Storage Small Storage Unit Processor Signal Interpreter Weapon Small Laser Energy Gun Small Laser Energy Cannon Beam Cannon Build | -11 -10 -10 ------- Run | Yrd Mat Sub Slots Evolved . | . . . Power . | . . . Propulsion . | . . . Utility . | . . . Weapon . | . . . Parts Attached 22 | 4 15 3 Power 4 | . 3 1 Engine 4 | . 3 1 Core . | . . . Reactor . | . . . Propulsion 8 | 2 5 1 Treads . | . . . Leg 8 | 2 5 1 Wheel . | . . . Hover . | . . . Flight . | . . . Utility 5 | . 5 . Device 3 | . 3 . Storage 1 | . 1 . Processor 1 | . 1 . Hackware . | . . . Protection . | . . . Artifact . | . . . Weapon 5 | 2 2 1 Energy Gun 3 | 2 1 . Energy Cannon 2 | . 1 1 Ballistic Gun . | . . . Ballistic Cannon . | . . . Launcher . | . . . Special Weapon . | . . . Impact Weapon . | . . . Slashing Weapon . | . . . Piercing Weapon . | . . . Special Melee Weapon . | . . . Unidentified Prototypes . | . . . Parts Lost 5 | . 1 4 Power 1 | . . 1 Propulsion 2 | . . 2 Utility . | . . . Weapon 2 | . 1 1 Highest Loss Streak 2 | . 1 2 To Critical Strikes . | . . . Average Backups 4 | 2 4 3 Power . | . 1 . Propulsion . | . . . Utility 1 | . 1 1 Weapon 2 | 1 2 1 Tool/Special . | . . . Unused Backups 7 | . 3 4 Power . | . . . Propulsion 1 | . . 1 Utility 1 | . 1 . Weapon 5 | . 2 3 Tool/Special . | . . . Average Slot Usage (%) 98 | . 97 100 Engine 13 | . 13 14 Leg 27 | . 27 28 Device 13 | . 13 14 Processor 13 | . 12 14 Energy Gun 19 | . 26 1 Energy Cannon 8 | . 1 26 Peak Build Rating 8 | 4 7 8 Average Rating 6 | 2 6 7 On Entrance 3 | . 4 7 Avg Prop Armor Cover (%) . | . . . Naked Turns . | . . . Heaviest Build 12 | 2 11 12 Greatest Support 20 | 20 20 20 Greatest Overweight (x) . | . . . Average Overweight (x) . | . . . Largest Inventory Capacity 8 | 5 8 5 Average Capacity 5 | 5 5 5 Most Carried 5 | 5 5 5 Average Carried 4 | 3 4 3 Final Capacity 5 | 5 5 5 Final Carried 5 | 4 5 5 Class Distribution -------------------- 100% | Mutant Dominant Class ---------------- Mutant | -10/Materials Mutant | -10/Subcaves Resources | -11 -10 -10 ----------- Run | Yrd Mat Sub Matter Collected 460 | 197 214 49 Remotely . | . . . Salvage Created 817 | . 702 115 Parts 36 | . 23 13 Haulers Intercepted . | . . . Recyclers Shooed . | . . . Parts Field Recycled . | . . . Retrieved Matter . | . . . Parts Self-Destructed 5 | . . 5 Prevented . | . . . Parts Restored . | . . . Kills | -11 -10 -10 ------- Run | Yrd Mat Sub Combat Hostiles Destroyed 19 | . 14 5 Guns 11 | . 11 . Cannons 7 | . 2 5 Classes Destroyed 5 | . 4 1 Recycler 3 | . 3 . Watcher 2 | . 2 . Swarmer 6 | . 3 3 Grunt 11 | . 11 . Subdweller 2 | . . 2 Best Kill Streak 4 | . 4 3 Combat Bots Only 3 | . 3 3 Max Kills in Single Turn 2 | . 2 1 Gunslinging . | . . . Exploded . | . . . Melee . | . . . Uniques/NPCs Destroyed . | . . . Combat | -11 -10 -10 -------- Run | Yrd Mat Sub Hostile Shots Fired 130 | . 83 47 Missed 40 | . 23 17 Hits 90 | . 60 30 Projectile 90 | . 60 30 AOE 2 | . . 2 Critical Strikes 1 | . 1 . Damage Taken 1332 | . 670 662 Core 260 | . 124 136 Absorbed by Shields . | . . . Regen/Repaired (Parts) 37 | . 37 . Core Remaining (%) 100 | 100 . . Volleys Fired 81 | . 67 14 Largest 2 | . 2 2 Hottest 120 | . 100 120 Shots Fired 162 | . 133 29 Gun 133 | . 127 6 Cannon 29 | . 6 23 Launcher . | . . . Special . | . . . Kinetic . | . . . Thermal 162 | . 133 29 Explosive . | . . . Electromagnetic . | . . . Robot Hit Streak 11 | . 11 6 Robot Miss Streak 6 | . 3 6 Penetration Max . | . . . Secondary Targets . | . . . Shots Hit Robots 104 | . 89 15 Core Hits 39 | . 33 6 Critical Kills . | . . . Critical Parts Destroyed . | . . . Critical Strikes 1 | . 1 . Burn 1 | . 1 . Melee Attacks . | . . . Impact . | . . . Slashing . | . . . Piercing . | . . . Sneak Attacks . | . . . Combat Hostiles . | . . . Follow-up Attacks . | . . . Damage Inflicted 1328 | . 1065 263 Guns 1047 | . 1013 34 Cannons 281 | . 52 229 Explosions . | . . . Melee . | . . . Ramming . | . . . Kinetic . | . . . Thermal 1328 | . 1065 263 Explosive . | . . . Electromagnetic . | . . . Impact . | . . . Slashing . | . . . Piercing . | . . . Highest Corruption 1 | . 1 1 Average Corruption 1 | . 1 1 Corruption Purged . | . . . Corruption Blocked . | . . . Effects 11 | . 6 5 Message Errors 4 | . 2 2 Matter Fused 5 | . 3 2 Data Loss (minor) 1 | . 1 . Misfires 1 | . . 1 Overload Shots . | . . . Overflow Damage . | . . . Projectiles . | . . . Explosions . | . . . Melee . | . . . Knockbacks . | . . . Impact . | . . . Kinetic . | . . . Secondary . | . . . Self-Inflicted Damage . | . . . Shots . | . . . Rammed . | . . . Targets Rammed . | . . . Kicked . | . . . Crushed . | . . . Highest Temperature 178 | . 178 . Average Temperature 50 | . 50 . Received Heat Transfer 339 | . 339 . Siege Activations . | . . . Martial Activations . | . . . Shielding Activations . | . . . Robots Disrupted . | . . . Combat Hostiles . | . . . Robots Corrupted . | . . . Combat Hostiles . | . . . Parts Fried . | . . . Impact Corruptions . | . . . Robots Melted 1 | . 1 . Combat Hostiles 1 | . 1 . Parts Melted 4 | . 3 1 Heat Transferred 3230 | . 2674 556 Parts Sabotaged . | . . . Parts Stolen . | . . . Parts Stripped . | . . . Power Chain Reactions . | . . . Alert | -11 -10 -10 ------- Run | Yrd Mat Sub Maximum Alert Level . | . . . Low Security (%) 100 | 100 100 . Level 1 . | . . . Level 2 . | . . . Level 3 . | . . . Level 4 . | . . . Level 5 . | . . . High Security . | . . . Max Security . | . . . Peak Influence 93 | . 93 . Initial . | . . . Average 22 | . 23 . Influence Increases 497 | . 427 70 Destroy 0b10 Robot/C 340 | . 280 60 Destroy 0b10 Robot/NC 25 | . 25 . Destroy Leader 84 | . 74 10 Successful Hack 3 | . 3 . Lose Combat Pursuer 45 | . 45 . Influence Decreases 497 | . 427 70 Time Decay 413 | . 363 50 Lost Part 30 | . 10 20 Purge Threat 54 | . 54 . Squads Dispatched 4 | . 4 . Investigation 2 | . 2 . Extermination . | . . . Reinforcement 2 | . 2 . Assault . | . . . Garrison . | . . . Intercept . | . . . Searches Triggered . | . . . Construction Impeded . | . . . Haulers Reinforced . | . . . Active Scanning Responses . | . . . Cargo Convoy Interrupts . | . . . Stealth | -11 -10 -10 --------- Run | Yrd Mat Sub Distress Signals 1 | . 1 . Communications Jammed . | . . . Distress Signals . | . . . Times Spotted 33 | . 26 7 Peak Tracking Total 3 | . 3 3 Tactical Retreats 3 | . 3 . Traps | -11 -10 -10 ------- Run | Yrd Mat Sub Traps Triggered 5 | . 2 3 Indirectly . | . . . Trap Hack Attempts . | . . . Triggered . | . . . Disarmed . | . . . Reprogrammed . | . . . Reused . | . . . Traps Extracted . | . . . Installed . | . . . Triggered . | . . . Machines | -11 -10 -10 ---------- Run | Yrd Mat Sub Machines Disabled . | . . . Max in Single Turn . | . . . Machines Repaired . | . . . Machines Dismantled . | . . . Machines Sabotaged . | . . . Overloaded Fab Kills . | . . . Hacking | -11 -10 -10 --------- Run | Yrd Mat Sub Machines Accessed 7 | . 7 . Terminals 5 | . 5 . Fabricators . | . . . Repair Stations 1 | . 1 . Recycling Units 1 | . 1 . Scanalyzers . | . . . Garrison Access . | . . . Total Hacks 19 | . 19 . Successful 8 | . 8 . Failed 11 | . 11 . Catastrophic 4 | . 4 . Database Lockouts . | . . . Manual 5 | . 5 . Terminals 14 | . 14 . Fabricators . | . . . Repair Stations 4 | . 4 . Recycling Units 1 | . 1 . Scanalyzers . | . . . Garrison Access . | . . . Terminal Hacks 5 | . 5 . Prototype ID Bank 3 | . 3 . Alert Level 1 | . 1 . Unreport Threat 1 | . 1 . Fabricator Hacks . | . . . Repair Station Hacks 2 | . 2 . Scan Component 1 | . 1 . Repair 1 | . 1 . Recycling Unit Hacks 1 | . 1 . Retrieve Components 1 | . 1 . Scanalyzer . | . . . Garrison Access Hacks . | . . . Unauthorized Hacks . | . . . Terminals . | . . . Fabricators . | . . . Repair Stations . | . . . Recycling Units . | . . . Scanalyzers . | . . . Garrison Access . | . . . Data Cores Recovered . | . . . Used . | . . . Hacking Detections 6 | . 6 . Full Trace Events 2 | . 2 . Feedback Events . | . . . Feedback Blocked . | . . . Robot Schematics Acquired . | . . . Robots Built . | . . . Authchips . | . . . Time . | . . . Total Robot Build Rating . | . . . Part Schematics Acquired . | . . . Parts Built . | . . . Authchips . | . . . Time . | . . . Total Part Build Rating . | . . . Part Studies Acquired . | . . . Parts Repaired 1 | . 1 . Time 26 | . 26 . Parts Recycled . | . . . Recycled Matter . | . . . Retrieved Matter . | . . . Retrieved Components 10 | . 10 . Parts Scanalyzed . | . . . Part Schematics Acquired . | . . . Parts Damaged . | . . . Bothacking | -11 -10 -10 ------------ Run | Yrd Mat Sub Used RIF Installer . | . . . Robots Hacked . | . . . Non-combat . | . . . Combat . | . . . Robot Hacks Applied . | . . . Relay Couplers Released . | . . . Fabnet Peak Effective % . | . . . Robots Rewired . | . . . Allies Hacked . | . . . Hacks Repelled . | . . . Allies | -11 -10 -10 -------- Run | Yrd Mat Sub Total Allies . | . . . Largest Group . | . . . Highest-Rated Group . | . . . Highest-Rated Ally . | . . . Total Orders . | . . . Ally Attacks . | . . . Total Damage . | . . . Kills . | . . . Allies Corrupted . | . . . Allies Melted . | . . . Intel | -11 -10 -10 ------- Run | Yrd Mat Sub Active Infowar (turns) 299 | . 299 . Sensors 299 | . 299 . Robot Analysis Total . | . . . Derelict Logs Recovered 1 | . . 1 Drone Launches . | . . . Drone Recoveries . | . . . Exploration | -11 -10 -10 ------------- Run | Yrd Mat Sub Turns Passed 2317 | 60 1662 595 Spaces Moved 1444 | 55 961 428 Core 24 | 24 . . Treads . | . . . Legs 1420 | 31 961 428 Wheels . | . . . Hover . | . . . Flight . | . . . Fastest Speed 50 | 50 120 120 Average Speed 118 | 89 120 120 Slowest Speed 120 | 120 120 120 Overloaded Moves . | . . . Propulsion Burnouts . | . . . Robots Hopped . | . . . Potential Cave-ins . | . . . Cave-ins Triggered . | . . . Exploration Rate (%) 44 | 3 99 30 Regions Visited 2 Branch Regions 1 Pre-discovered Areas . | . . . Known Exits Taken 1 | . 1 . Unknown Exits Taken 1 | 1 . . Scrap Searched 1 | . . 1 Spaces Dug . | . . . Terrain Destroyed . | . . . Melee . | . . . Projectile . | . . . AOE . | . . . Terrain Rammed . | . . . Walls Destroyed . | . . . Machines Disabled . | . . . Actions | -11 -10 -10 --------- Run | Yrd Mat Sub Total 1885 | 66 1341 478 Wait 294 | . 266 28 Move 1442 | 54 960 428 Hop . | . . . Pick Up 31 | 8 19 4 Fast Attach . | . . . Attach 14 | 4 6 4 Detach . | . . . Swap 10 | . 10 . Drop 13 | . 13 . Fire 81 | . 67 14 Melee . | . . . Ram . | . . . Kick . | . . . Crush . | . . . Escape Stasis . | . . . Rewire . | . . . Trap . | . . . Miscellaneous . | . . . Route ------- -11/Scrapyard -10/Materials (discovered 4 exits: *Mat x2 / *Min / *Sub) -10/Subcaves History --------- Turn | Location | Event 9 | -11/Scrapyard | Discovered new exit (range 15) 61 | -11/Scrapyard | Entered Materials 159 | -10/Materials | Discovered new exit (range 5) 310 | -10/Materials | Build established: Mutant 314 | -10/Materials | Discovered new exit (range 13) 352 | -10/Materials | Repaired Aluminum Leg 543 | -10/Materials | Identified exit to Materials 977 | -10/Materials | Discovered exit to Materials (range 15) 1033 | -10/Materials | Identified exit to Subcaves 1229 | -10/Materials | Discovered new exit (range 13) 1310 | -10/Materials | Identified exit to Mines 1723 | -10/Materials | Entered Subcaves 1724 | -10/Subcaves | Approached by a straggling Scientist 1758 | -10/Subcaves | Core integrity fell below 50% 1914 | -10/Subcaves | Core integrity fell below 20% 1935 | -10/Subcaves | Learned Materials stockpile data 2004 | -10/Subcaves | A swath of the cavern ceiling suddenly collapsed 2228 | -10/Subcaves | Ambushed by Subdweller buried in earth 2318 | -10/Subcaves | Destroyed by TN-BDY(R) with Subdweller Machine Gun Last Messages --------------- 4S-L9K(c): "I think it's somewhere southeast of here" System corrupted: Matter fused (-9). 4S-L9K(c): "I think it's somewhere southeast of here" [Achievement: Do Not Disturb] 52-I8A(R): "ARGHSUB!" 52-I8A(R) destroyed. W4-2HF(R) destroyed. 4S-L9K(c) destroyed. Sub. Power Source melted. 7M-LK3(R) destroyed. Subatomizers dissect the Sub. Monowheel. Acquired 9 matter. Subatomizers dissect the Sub. Monowheel. Tech Extrapolator violently self-destructs. Acquired Battle Rifle. Acquired Sub. Monowheel. Subatomizers dissect the Sub. Shrapnel Launcher. TN-BDY(R): "WEHOME!" Map ----- +----------------------------------------------------+ | " #???# ##??????????????????????????????????? | | "##????###???????????????????????????????????? | | ###???????????????????????????????????????????? | | ##?????????????????????????????????????????????? | | ##??????????????????????????????????????????????? | | #???????????????????????????????????????????????? | | ##??????????????????????????????????????????????? | | #??????????????????????????????????????????????? | | ##??????????????????????????????????????????????? | | ####????????????????????????????????????????????? | | ##???????????????????????????????????????????? | | #???????????????????????????????????????????? | | #???????????????????????????????????????????? | | #???????????????????????????????????????????? | | #???????????????????????????????????????????? | | ##?????????????????????????###??????????????? | | #???????????????####?????? #??????????????? | | ## ##???????######?## #?????# ###????????????? | | ?## ##???????## #?# #?????# ##???????????? | | ??###???????## ### ##??### ##??####????? | | ????????????# ## ##?? " ## ##???? | | ????????????# ##? " " ??? | | ???????????## ### " ????? | | ????????#### ## # " ????? | | #??????##""#"# ### R"" """??????? | | ##?????# *&&& ##### @ "# """ " ??????? | | #?????# !& % #??# " ""## """ ???????? | | ##????### % &! ""#?"""""""# ""####""" ????????? | | #?????# ] ! ### " "#???? ????????? | | ##????## "# "#?#" " ?????###???????? | | ###### # " "" "#?#" " ???????????????? | | ## # # " """""#?#" #### ??????????????? | | ## ### ####### ##?#" ##????#?????????????? | | ?####?###?????#####??#" ###???????????????????? | | ??????????????????????" #?????????????????????? | | ?????????????????????? #?????????????????????? | | ?????????????????????? """?????????????????????? | | ?????????????????????? """ #?????????????????????? | | ??????????????????????"" ???????????????????????? | | ?????????????????????????????????????????????????? | | ?????????????????????????????????????????????????? | | ?????????????????????????????????????????????????? | | ?????????????????????????????????????????????????? | | ?????????????????????????????????????????????????? | | ?????????????????????????????????????????????????? | | ?????????????????????????????????????????????????? | | ?????????????????????????????????????????????????? | | ?????????????????????????????????????????????????? | | ?????????????????????????????????????????????????? | | ?????????????????????????????????????????????????? | +----------------------------------------------------+ Best States ------------- Heat Dissipation 35 Energy Generation 10 Energy Capacity 250 Matter Stores 300 Matter Capacity 300 Sight Range 16 Robot Scan Range 14 Terrain Scan Density 10 Evasion (%) 55 Item Schematics ----------------- None Robot Schematics ------------------ None Fabricated ------------ Nothing Repaired ---------- Aluminum Leg | 58% | -10/Materials Studied --------- None Alien Tech Used ----------------- None Achievements -------------- Do Not Disturb There's More Where That Came From Challenges ------------ None Game ------ Seed OmegaDeuteriumPit Manual? 0 Play Time 00:24:01 Cumulative 16.6 hours Start 2025.12.15 @ 14:56:01 End 2025.12.15 @ 15:20:07 Sessions 1 Manual Loads 0 Difficulty Rogue Special Mode None Game No. 20 Rogue 20 Adventurer 0 Explorer 0 Win Type - Total 0 Types 0/0/0/0/0/0/0/0/0/0 Lore% 12 Gallery% 17 Achievement% 8 Wizard Run 0 Options --------- Layout 1 ASCII 0 Keyboard 0 Movement Mouse Keybinds 0 Fullscreen 1 Font 24/Smallcaps Map View 50x35 Zoom Use 0% Tactical HUD 0 Map Filters NONE Filters NONE Steam 1 RUN: 51aa9168-4ebe-4430-b487-233c4e96f628